lending/lending_fUSD_20250701
["ID","MTS","AMOUNT","RATE_DAILY","PERIOD"]
[368734717,1751335842957,-151.0,0.00013874,2]
[368734718,1751335842968,-264.691152,0.00013874,2]
[368734719,1751335842978,-151.0,0.00013874,2]
[368734720,1751335842988,-294.923027,0.00013874,2]
[368734721,1751335842999,-151.0,0.00013874,2]
[368734722,1751335843009,-151.0,0.00013874,2]
[368734723,1751335843019,-151.0,0.00013875,2]
[368734725,1751335843029,-153.243486,0.00013875,2]
[368734726,1751335843039,-151.0,0.00013875,2]
[368734728,1751335843049,-159.612595,0.00013875,2]
[368734730,1751335843059,-151.0,0.00013875,2]
[368734732,1751335843069,-151.0,0.00013875,2]
[368734734,1751335843079,-168.428377,0.00013875,2]
[368734736,1751335843089,-294.36118,0.00013875,2]
[368734738,1751335843099,-151.0,0.00013875,2]
[368734740,1751335843109,-151.0,0.00013875,2]
[368734742,1751335843119,-151.0,0.00013875,2]
[368734744,1751335843129,-269.77098,0.00013875,2]
[368734746,1751335843139,-151.0,0.00013875,2]
[368734749,1751335843149,-490.0,0.00013876,2]
[368734751,1751335843159,-490.0,0.00013876,2]
[368734753,1751335843169,-490.0,0.00013876,2]
[368734755,1751335843179,-490.0,0.00013876,2]
[368734757,1751335843189,-490.0,0.00013876,2]
[368734759,1751335843199,-490.0,0.00013876,2]
[368734761,1751335843209,-490.0,0.00013876,2]
[368734763,1751335843219,-632.21,0.00013876,2]
[368734765,1751335843229,-1208.29,0.00013876,2]
[368734767,1751335843239,-822.45,0.00013876,2]
[368734768,1751335843248,-1198.03,0.00013876,2]
[368734769,1751335843259,-172.624797,0.00013876,2]
[368734770,1751335843269,-918.14,0.00013876,2]
[368734771,1751335843279,-998.7,0.00013876,2]
[368734772,1751335843289,-1587.85,0.00013876,2]
[368734773,1751335843299,-1593.22,0.00013876,2]
[368734774,1751335843309,-6909.08,0.00013876,2]
[368734775,1751335843319,-151.0,0.00013876,2]
[368734776,1751335843329,-1714.8,0.00013876,2]
[368734777,1751335843339,-490.0,0.00013876,2]
[368734778,1751335843348,-151.0,0.00013876,2]
[368734779,1751335843358,-701.19,0.00013876,2]
[368734780,1751335843368,-1091.65,0.00013876,2]
[368734781,1751335843378,-1572.86,0.00013876,2]
[368734782,1751335843388,-1331.54,0.00013876,2]
[368734783,1751335843397,-782.86,0.00013876,2]
[368734784,1751335843406,-534.79,0.00013876,2]
[368734785,1751335843416,-490.0,0.00013876,2]
[368734786,1751335843425,-720.41,0.00013876,2]
[368734787,1751335843435,-951.33,0.00013876,2]
[368734788,1751335843445,-1507.26,0.00013876,2]
[368734789,1751335843455,-151.0,0.00013876,2]
[368734790,1751335843465,-151.0,0.00013876,2]
[368734791,1751335843474,-1587.57,0.00013876,2]
[368734792,1751335843484,-4714.83,0.00013876,2]
[368734793,1751335843494,-2171.24,0.00013876,2]
[368734794,1751335843504,-548.43,0.00013876,2]
[368734795,1751335843514,-1173.01,0.00013876,2]
[368734796,1751335843525,-500.0,0.00013876,2]
[368734797,1751335843536,-1215.47,0.00013876,2]
[368734798,1751335843546,-690.31,0.00013877,2]
[368734799,1751335843556,-493.4859106,0.00013877,2]
[368734800,1751335843566,-490.0,0.00013877,2]
[368734801,1751335843575,-576.47,0.00013877,2]
[368734802,1751335843585,-490.0,0.00013877,2]
[368734803,1751335843595,-490.0,0.00013877,2]
[368734804,1751335843605,-492.65841028,0.00013877,2]
[368734805,1751335843615,-959.34,0.00013877,2]
[368734806,1751335843625,-959.34,0.00013877,2]
[368734807,1751335843635,-415.60086613,0.00013877,2]
[368734808,1751335843645,-490.0,0.00013877,2]
[368734809,1751335843655,-579.57,0.00013877,2]
[368734810,1751335843665,-492.58361351,0.00013877,2]
[368734811,1751335843674,-494.49695985,0.00013877,2]
[368734812,1751335843684,-490.0,0.00013877,2]
[368734813,1751335843694,-782.2,0.00013877,2]
[368734814,1751335843704,-490.0,0.00013877,2]
[368734815,1751335843714,-490.0,0.00013877,2]
[368734816,1751335843724,-493.34320951,0.00013877,2]
[368734817,1751335843733,-490.0,0.00013877,2]
[368734818,1751335843743,-490.0,0.00013877,2]
[368734819,1751335843753,-490.0,0.00013877,2]
[368734820,1751335843763,-490.0,0.00013877,2]
[368734821,1751335843773,-500.79538932,0.00013877,2]
[368734822,1751335843784,-676.98,0.00013877,2]
[368734823,1751335843794,-490.0,0.00013877,2]
[368734824,1751335843804,-626.73,0.00013877,2]
[368734825,1751335843814,-494.57578771,0.00013877,2]
[368734826,1751335843825,-490.0,0.00013877,2]
[368734827,1751335843835,-457.90716856,0.00013877,2]
[368734828,1751335843846,-494.26047585,0.00013877,2]
[368734829,1751335843856,-490.0,0.00013877,2]
[368734830,1751335843867,-494.36247248,0.00013877,2]
[368734831,1751335843877,-490.0,0.00013877,2]
[368734832,1751335843888,-490.0,0.00013877,2]
[368734833,1751335843898,-490.0,0.00013877,2]
[368734834,1751335843909,-494.82287545,0.00013877,2]
[368734835,1751335843919,-490.0,0.00013877,2]
[368734836,1751335843929,-490.0,0.00013877,2]
[368734837,1751335843939,-680.29,0.00013877,2]
[368734838,1751335843949,-492.35304115,0.00013877,2]
[368734839,1751335843960,-490.0,0.00013877,2]
[368734840,1751335843969,-490.0,0.00013877,2]
[368734841,1751335843979,-490.0,0.00013877,2]
[368734842,1751335843991,-490.0,0.00013877,2]
[368734843,1751335844003,-492.42787569,0.00013877,2]
[368734844,1751335844014,-515.68,0.00013877,2]
[368734845,1751335844025,-514.24,0.00013877,2]
[368734846,1751335844036,-514.24,0.00013877,2]
[368734847,1751335844046,-490.0,0.00013877,2]
[368734848,1751335844056,-490.0,0.00013877,2]
[368734849,1751335844066,-958.84,0.00013877,2]
[368734850,1751335844076,-493.75573606,0.00013877,2]
[368734851,1751335844088,-570.16,0.00013877,2]
[368734852,1751335844098,-494.17880613,0.00013877,2]
[368734853,1751335844109,-639.99,0.00013877,2]
[368734854,1751335844119,-490.0,0.00013877,2]
[368734855,1751335844129,-490.0,0.00013877,2]
[368734856,1751335844140,-490.0,0.00013877,2]
[368734857,1751335844150,-490.0,0.00013877,2]
[368734858,1751335844162,-1444.18,0.00013877,2]
[368734859,1751335844173,-502.70507861,0.00013877,2]
[368734860,1751335844185,-1163.73,0.00013877,2]
[368734861,1751335844196,-490.0,0.00013877,2]
[368734862,1751335844207,-490.0,0.00013877,2]
[368734863,1751335844217,-496.20049969,0.00013877,2]
[368734864,1751335844227,-531.09,0.00013877,2]
[368734865,1751335844237,-490.0,0.00013877,2]
[368734866,1751335844248,-490.0,0.00013877,2]
[368734867,1751335844257,-490.0,0.00013877,2]
[368734868,1751335844267,-494.23911854,0.00013877,2]
[368734869,1751335844277,-490.0,0.00013877,2]
[368734870,1751335844288,-490.0,0.00013877,2]
[368734871,1751335844298,-492.11222511,0.00013877,2]
[368734872,1751335844308,-808.19,0.00013877,2]
[368734873,1751335844323,-490.0,0.00013877,2]
[368734874,1751335844333,-788.64,0.00013877,2]
[368734875,1751335844345,-490.0,0.00013877,2]
[368734876,1751335844356,-490.0,0.00013877,2]
[368734877,1751335844366,-775.92,0.00013877,2]
[368734878,1751335844376,-496.44774873,0.00013877,2]
[368734879,1751335844387,-804.77,0.00013877,2]
[368734880,1751335844397,-515.91941012,0.00013877,2]
[368734881,1751335844408,-730.69,0.00013877,2]
[368734882,1751335844419,-720.01,0.00013877,2]
[368734883,1751335844431,-428.14330177,0.00013877,2]
[368734884,1751335844441,-490.0,0.00013877,2]
[368734885,1751335844451,-490.0,0.00013877,2]
[368734886,1751335844461,-1044.09,0.00013877,2]
[368734887,1751335844471,-490.0,0.00013877,2]
[368734888,1751335844481,-490.0,0.00013877,2]
[368734889,1751335844493,-490.0,0.00013877,2]
[368734890,1751335844504,-616.3,0.00013877,2]
[368734891,1751335844514,-490.0,0.00013877,2]
[368734892,1751335844525,-754.32,0.00013877,2]
[368734893,1751335844535,-490.0,0.00013877,2]
[368734894,1751335844545,-931.86,0.00013877,2]
[368734895,1751335844556,-589.22064706,0.00013877,2]
[368734896,1751335844568,-1568.27,0.00013877,2]
[368734897,1751335844578,-497.15642354,0.00013877,2]
[368734898,1751335844588,-490.0,0.00013877,2]
[368734899,1751335844601,-490.0,0.00013877,2]
[368734900,1751335844611,-740.39,0.00013877,2]
[368734901,1751335844621,-492.5221146,0.00013877,2]
[368734902,1751335844631,-490.0,0.00013877,2]
[368734903,1751335844641,-859.87,0.00013877,2]
[368734904,1751335844653,-490.0,0.00013877,2]
[368734905,1751335844664,-490.0,0.00013877,2]
[368734906,1751335844675,-583.44,0.00013877,2]
[368734907,1751335844685,-490.0,0.00013877,2]
[368734908,1751335844695,-492.09929909,0.00013877,2]
[368734909,1751335844705,-733.41,0.00013877,2]
[368734910,1751335844715,-490.0,0.00013877,2]
[368734911,1751335844725,-493.54730945,0.00013877,2]
[368734912,1751335844735,-493.47541396,0.00013877,2]
[368734913,1751335844746,-490.0,0.00013877,2]
[368734914,1751335844756,-490.0,0.00013877,2]
[368734915,1751335844767,-437.67811157,0.00013877,2]
[368734916,1751335844777,-490.0,0.00013877,2]
[368734917,1751335844787,-490.0,0.00013877,2]
[368734918,1751335844797,-495.28317427,0.00013877,2]
[368734919,1751335844807,-494.4869367,0.00013877,2]
[368734920,1751335844818,-495.87778602,0.00013877,2]
[368734921,1751335844828,-1512.72,0.00013877,2]
[368734922,1751335844838,-496.31988568,0.00013877,2]
[368734923,1751335844848,-490.0,0.00013877,2]
[368734924,1751335844859,-490.0,0.00013877,2]
[368734925,1751335844869,-490.0,0.00013877,2]
[368734926,1751335844880,-771.88,0.00013877,2]
[368734927,1751335844891,-490.0,0.00013877,2]
[368734928,1751335844901,-237.60588859,0.00013877,2]
[368734929,1751335844912,-490.0,0.00013877,2]
[368734930,1751335844923,-490.0,0.00013877,2]
[368734931,1751335844934,-496.30833195,0.00013877,2]
[368734932,1751335844946,-490.0,0.00013877,2]
[368734933,1751335844955,-490.0,0.00013877,2]
[368734934,1751335844965,-522.51,0.00013877,2]
[368734935,1751335844976,-840.81,0.00013877,2]
[368734936,1751335844989,-490.0,0.00013877,2]
[368734937,1751335845212,-774.95,0.00013877,2]
[368734938,1751335845223,-523.866761,0.00013877,2]
[368734939,1751335845233,-494.25821736,0.00013877,2]
[368734940,1751335845243,-490.0,0.00013877,2]
[368734941,1751335845253,-497.79130757,0.00013877,2]
[368734942,1751335845263,-1089.08,0.00013877,2]
[368734943,1751335845273,-494.32287509,0.00013877,2]
[368734944,1751335845282,-497.87415499,0.00013877,2]
[368734945,1751335845293,-493.84080089,0.00013877,2]
[368734946,1751335845303,-490.0,0.00013877,2]
[368734947,1751335845314,-570.48,0.00013877,2]
[368734948,1751335845324,-401.98689366,0.00013877,2]
[368734949,1751335845334,-491.87797401,0.00013877,2]
[368734950,1751335845344,-820.58,0.00013877,2]
[368734951,1751335845354,-498.57205901,0.00013877,2]
[368734952,1751335845364,-482.31846146,0.00013877,2]
[368734953,1751335845375,-496.98387758,0.00013877,2]
[368734954,1751335845385,-495.37439068,0.00013877,2]
[368734955,1751335845395,-495.17350395,0.00013877,2]
[368734956,1751335845405,-490.0,0.00013877,2]
[368734957,1751335845415,-531.65554756,0.00013877,2]
[368734958,1751335845425,-170.0,0.00013877,2]
[368734960,1751335845435,-733.15,0.00013877,2]
[368734961,1751335845446,-495.85403862,0.00013877,2]
[368734962,1751335845455,-490.0,0.00013877,2]
[368734963,1751335845465,-454.02953397,0.00013877,2]
[368734964,1751335845476,-490.0,0.00013877,2]
[368734965,1751335845486,-490.0,0.00013877,2]
[368734966,1751335845498,-490.0,0.00013877,2]
[368734967,1751335845510,-529.07,0.00013877,2]
[368734968,1751335845521,-490.0,0.00013877,2]
[368734969,1751335845535,-511.61,0.00013877,2]
[368734970,1751335845545,-374.11096622,0.00013877,2]
[368734971,1751335845556,-499.44863891,0.00013877,2]
[368734972,1751335845567,-492.72110113,0.00013877,2]
[368734973,1751335845578,-497.01563675,0.00013877,2]
[368734974,1751335845588,-490.0,0.00013877,2]
[368734975,1751335845598,-506.02439574,0.00013877,2]
[368734976,1751335845611,-493.29556307,0.00013877,2]
[368734977,1751335845621,-490.0,0.00013877,2]
[368734978,1751335845632,-490.0,0.00013877,2]
[368734979,1751335845641,-494.41915637,0.00013877,2]
[368734980,1751335845652,-493.5373102,0.00013877,2]
[368734981,1751335845664,-583.99,0.00013877,2]
[368734982,1751335845674,-490.0,0.00013877,2]
[368734983,1751335845683,-490.0,0.00013877,2]
[368734984,1751335845694,-567.11,0.00013877,2]
[368734985,1751335845703,-490.0,0.00013877,2]
[368734986,1751335845713,-1373.18,0.00013877,2]
[368734987,1751335845724,-490.0,0.00013877,2]
[368734988,1751335845734,-491.45774622,0.00013877,2]
[368734989,1751335845745,-494.11003198,0.00013877,2]
[368734990,1751335845755,-565.40764722,0.00013877,2]
[368734991,1751335845766,-490.0,0.00013877,2]
[368734992,1751335845775,-490.0,0.00013877,2]
[368734993,1751335845787,-490.0,0.00013877,2]
[368734994,1751335845797,-490.0,0.00013877,2]
[368734995,1751335845807,-490.0,0.00013877,2]
[368734996,1751335845817,-490.0,0.00013877,2]
[368734997,1751335845827,-1159.54,0.00013877,2]
[368734998,1751335845837,-490.0,0.00013877,2]
[368734999,1751335845847,-490.0,0.00013877,2]
[368735000,1751335845856,-490.0,0.00013877,2]
[368735001,1751335845867,-490.0,0.00013877,2]
[368735002,1751335845877,-582.32,0.00013877,2]
[368735003,1751335845889,-547.7,0.00013877,2]
[368735004,1751335845899,-706.01,0.00013877,2]
[368735005,1751335845909,-490.0,0.00013877,2]
[368735006,1751335845919,-490.0,0.00013877,2]
[368735007,1751335845928,-490.0,0.00013877,2]
[368735008,1751335845939,-490.0,0.00013877,2]
[368735009,1751335845951,-490.83562231,0.00013877,2]
[368735010,1751335845964,-490.0,0.00013877,2]
[368735011,1751335845974,-491.86174408,0.00013877,2]
[368735012,1751335845984,-639.98,0.00013877,2]
[368735013,1751335845994,-490.0,0.00013877,2]
[368735014,1751335846003,-490.0,0.00013877,2]
[368735015,1751335846013,-492.26858322,0.00013877,2]
[368735016,1751335846023,-490.0,0.00013877,2]
[368735017,1751335846033,-763.05,0.00013877,2]
[368735018,1751335846043,-490.0,0.00013877,2]
[368735019,1751335846053,-490.0,0.00013877,2]
[368735020,1751335846064,-2832.84,0.00013877,2]
[368735021,1751335846074,-491.84582217,0.00013877,2]
[368735022,1751335846088,-490.0,0.00013877,2]
[368735023,1751335846100,-1091.41,0.00013877,2]
[368735025,1751335846111,-873.02,0.00013877,2]
[368735026,1751335846121,-490.0,0.00013877,2]
[368735027,1751335846131,-490.0,0.00013877,2]
[368735028,1751335846141,-1375.94,0.00013877,2]
[368735029,1751335846152,-490.0,0.00013877,2]
[368735030,1751335846162,-490.0,0.00013877,2]
[368735031,1751335846172,-490.0,0.00013877,2]
[368735032,1751335846183,-883.91,0.00013877,2]
[368735033,1751335846193,-490.0,0.00013877,2]
[368735034,1751335846205,-490.0,0.00013877,2]
[368735035,1751335846215,-490.0,0.00013877,2]
[368735036,1751335846226,-735.73,0.00013877,2]
[368735037,1751335846237,-987.82,0.00013877,2]
[368735038,1751335846248,-490.0,0.00013877,2]
[368735039,1751335846258,-490.0,0.00013877,2]
[368735040,1751335846268,-490.0,0.00013877,2]
[368735041,1751335846278,-490.0,0.00013877,2]
[368735042,1751335846288,-490.0,0.00013877,2]
[368735043,1751335846297,-490.0,0.00013877,2]
[368735044,1751335846307,-1500.55,0.00013877,2]
[368735045,1751335846318,-720.39,0.00013877,2]
[368735046,1751335846328,-490.0,0.00013877,2]
[368735047,1751335846338,-490.0,0.00013877,2]
[368735048,1751335846348,-2378.62,0.00013877,2]
[368735049,1751335846358,-1144.2,0.00013877,2]
[368735050,1751335846369,-852.88,0.00013877,2]
[368735051,1751335846379,-490.0,0.00013877,2]
[368735052,1751335846389,-490.0,0.00013877,2]
[368735053,1751335846399,-1094.18,0.00013877,2]
[368735054,1751335846409,-489.75455583,0.00013877,2]
[368735055,1751335846420,-1579.72,0.00013877,2]
[368735056,1751335846430,-540.94,0.00013877,2]
[368735057,1751335846440,-608.61,0.00013877,2]
[368735058,1751335846451,-490.0,0.00013877,2]
[368735059,1751335846461,-738.65,0.00013877,2]
[368735060,1751335846471,-1227.87,0.00013877,2]
[368735061,1751335846481,-564.42,0.00013877,2]
[368735062,1751335846492,-490.0,0.00013877,2]
[368735063,1751335846503,-490.0,0.00013877,2]
[368735064,1751335846513,-2131.76,0.00013877,2]
[368735065,1751335846526,-490.0,0.00013877,2]
[368735066,1751335846537,-490.0,0.00013877,2]
[368735067,1751335846547,-712.51,0.00013877,2]
[368735068,1751335846557,-490.0,0.00013877,2]
[368735069,1751335846567,-3055.98,0.00013877,2]
[368735070,1751335846578,-502.3761977,0.00013877,2]
[368735071,1751335846587,-662.76,0.00013877,2]
[368735072,1751335846597,-565.11,0.00013877,2]
[368735073,1751335846606,-1308.12,0.00013877,2]
[368735074,1751335846617,-1913.35,0.00013877,2]
[368735075,1751335846626,-880.07,0.00013877,2]
[368735076,1751335846636,-490.68662193,0.00013877,2]
[368735077,1751335846646,-490.0,0.00013877,2]
[368735078,1751335846656,-489.08771394,0.00013877,2]
[368735079,1751335846666,-494.16943139,0.00013877,2]
[368735080,1751335846675,-574.39,0.00013877,2]
[368735081,1751335846686,-492.14434994,0.00013877,2]
[368735082,1751335846697,-496.2,0.00013877,2]
[368735083,1751335846707,-490.0,0.00013877,2]
[368735084,1751335846717,-1523.29,0.00013877,2]
[368735085,1751335846727,-2910.42,0.00013877,2]
[368735086,1751335846737,-3330.17,0.00013877,2]
[368735087,1751335846746,-490.0,0.00013877,2]
[368735088,1751335846756,-490.0,0.00013877,2]
[368735089,1751335846767,-491.87865051,0.00013877,2]
[368735090,1751335846777,-490.0,0.00013877,2]
[368735091,1751335846788,-722.678296,0.00013877,2]
[368735092,1751335846799,-722.678296,0.00013877,2]
[368735093,1751335846809,-618.20879232,0.00013877,2]
[368735094,1751335846819,-775.77,0.00013877,2]
[368735095,1751335846830,-490.0,0.00013877,2]
[368735096,1751335846840,-3183.99,0.00013877,2]
[368735097,1751335846851,-151.0,0.00013877,2]
[368735098,1751335846862,-805.97,0.00013877,2]
[368735099,1751335846874,-722.678296,0.00013877,2]
[368735100,1751335846885,-805.97,0.00013877,2]
[368735101,1751335846895,-490.0,0.00013877,2]
[368735102,1751335846906,-722.678304,0.00013877,2]
[368735103,1751335846916,-2377.19,0.00013877,2]
[368735104,1751335846927,-639.43,0.00013877,2]
[368735105,1751335846937,-500.0,0.00013877,2]
[368735106,1751335846947,-500.0,0.00013877,2]
[368735107,1751335846958,-153.6412033,0.00013877,2]
[368735108,1751335846968,-490.0,0.00013877,2]
[368735109,1751335846978,-1451.46,0.00013877,2]
[368735110,1751335846988,-1336.95,0.00013877,2]
[368735111,1751335846999,-1391.11,0.00013877,2]
[368735112,1751335847012,-613.13771168,0.00013877,2]
[368735113,1751335847021,-495.62172972,0.00013877,2]
[368735114,1751335847032,-490.0,0.00013877,2]
[368735115,1751335847043,-1783.08,0.00013877,2]
[368735116,1751335847053,-490.0,0.00013877,2]
[368735117,1751335847063,-492.3573603,0.00013877,2]
[368735118,1751335847073,-490.0,0.00013877,2]
[368735119,1751335847084,-493.85193544,0.00013877,2]
[368735120,1751335847094,-500.0,0.00013877,2]
[368735121,1751335847105,-500.0,0.00013877,2]
[368735122,1751335847115,-2023.82,0.00013877,2]
[368735123,1751335847125,-151.0,0.00013877,2]
[368735124,1751335847135,-490.0,0.00013877,2]
[368735125,1751335847145,-1407.13,0.00013877,2]
[368735126,1751335847155,-490.0,0.00013877,2]
[368735127,1751335847165,-490.0,0.00013877,2]
[368735128,1751335847176,-492.32156693,0.00013877,2]
[368735129,1751335847186,-3055.81,0.00013877,2]
[368735130,1751335847196,-7139.19,0.00013877,2]
[368735131,1751335847206,-490.0,0.00013877,2]
[368735132,1751335847216,-491.97321804,0.00013877,2]
[368735133,1751335847226,-702.63,0.00013877,2]
[368735134,1751335847237,-493.87684184,0.00013877,2]
[368735135,1751335847247,-521.23062911,0.00013877,2]
[368735136,1751335847256,-490.0,0.00013877,2]
[368735137,1751335847266,-3242.62,0.00013877,2]
[368735138,1751335847277,-492.36672669,0.00013877,2]
[368735139,1751335847287,-684.56,0.00013877,2]
[368735140,1751335847297,-912.98,0.00013877,2]
[368735141,1751335847306,-494.33473509,0.00013877,2]
[368735142,1751335847316,-166.82126601,0.00013877,2]
[368735143,1751335847326,-494.33487896,0.00013877,2]
[368735144,1751335847337,-2291.77,0.00013877,2]
[368735145,1751335847348,-491.57080721,0.00013877,2]
[368735146,1751335847358,-490.0,0.00013877,2]
[368735147,1751335847368,-490.0,0.00013877,2]
[368735148,1751335847377,-491.97864681,0.00013877,2]
[368735149,1751335847387,-688.8,0.00013877,2]
[368735150,1751335847396,-636.35,0.00013877,2]
[368735151,1751335847406,-3605.92,0.00013877,2]
[368735152,1751335847416,-490.0,0.00013877,2]
[368735153,1751335847425,-1565.64,0.00013877,2]
[368735154,1751335847434,-490.0,0.00013877,2]
[368735155,1751335847444,-490.0,0.00013877,2]
[368735156,1751335847454,-1661.62,0.00013877,2]
[368735157,1751335847463,-493.90721268,0.00013877,2]
[368735158,1751335847473,-490.0,0.00013877,2]
[368735159,1751335847482,-490.0,0.00013877,2]
[368735160,1751335847492,-753.76,0.00013877,2]
[368735161,1751335847502,-4613.62,0.00013877,2]
[368735162,1751335847512,-490.0,0.00013877,2]
[368735163,1751335847522,-490.0,0.00013877,2]
[368735164,1751335847535,-490.0,0.00013877,2]
[368735165,1751335847545,-490.0,0.00013877,2]
[368735166,1751335847556,-4595.57,0.00013877,2]
[368735167,1751335847566,-819.19,0.00013877,2]
[368735168,1751335847577,-1383.9,0.00013877,2]
[368735169,1751335847587,-1551.24,0.00013877,2]
[368735170,1751335847597,-490.0,0.00013877,2]
[368735171,1751335847609,-490.0,0.00013877,2]
[368735172,1751335847621,-152.94299054,0.00013877,2]
[368735173,1751335847633,-629.83,0.00013877,2]
[368735174,1751335847644,-1165.14,0.00013877,2]
[368735175,1751335847656,-490.0,0.00013877,2]
[368735176,1751335847666,-1852.88,0.00013877,2]
[368735177,1751335847677,-7927.06,0.00013877,2]
[368735178,1751335847687,-1042.16,0.00013877,2]
[368735179,1751335847697,-490.0,0.00013877,2]
[368735180,1751335847708,-1272.0,0.00013877,2]
[368735181,1751335848069,-151.0,0.00013877,2]
[368735182,1751335848087,-1346.94,0.00013877,2]
[368735183,1751335848097,-490.0,0.00013877,2]
[368735184,1751335848107,-4127.01,0.00013877,2]
[368735185,1751335848117,-166.321852,0.00013877,2]
[368735186,1751335848127,-490.0,0.00013877,2]
[368735187,1751335848138,-493.01654975,0.00013877,2]
[368735188,1751335848148,-1187.62,0.00013877,2]
[368735189,1751335848158,-492.47718856,0.00013877,2]
[368735190,1751335848168,-490.0,0.00013877,2]
[368735191,1751335848178,-490.0,0.00013877,2]
[368735192,1751335848189,-1476.07,0.00013877,2]
[368735193,1751335848199,-491.48966802,0.00013877,2]
[368735194,1751335848209,-490.59495575,0.00013877,2]
[368735195,1751335848219,-5223.27,0.00013877,2]
[368735196,1751335848229,-493.11804679,0.00013877,2]
[368735197,1751335848239,-911.63,0.00013877,2]
[368735198,1751335848249,-911.66,0.00013877,2]
[368735199,1751335848259,-490.0,0.00013877,2]
[368735200,1751335848269,-490.0,0.00013877,2]
[368735201,1751335848279,-996.98,0.00013877,2]
[368735202,1751335848289,-490.0,0.00013877,2]
[368735203,1751335848299,-490.0,0.00013877,2]
[368735204,1751335848309,-3872.53,0.00013877,2]
[368735205,1751335848316,-1012.43,0.00013877,2]
[368735206,1751335848325,-1687.42,0.00013877,2]
[368735207,1751335848335,-490.0,0.00013877,2]
[368735208,1751335848345,-493.74361333,0.00013877,2]
[368735209,1751335848355,-490.0,0.00013877,2]
[368735210,1751335848364,-490.0,0.00013877,2]
[368735211,1751335848375,-2328.03,0.00013877,2]
[368735212,1751335848385,-2631.97,0.00013877,2]
[368735213,1751335848395,-500.13,0.00013877,2]
[368735214,1751335848405,-490.0,0.00013877,2]
[368735215,1751335848416,-962.79,0.00013877,2]
[368735216,1751335848426,-1141.78,0.00013877,2]
[368735217,1751335848435,-5528.51,0.00013877,2]
[368735218,1751335848446,-2543.7,0.00013877,2]
[368735219,1751335848457,-737.51,0.00013877,2]
[368735220,1751335848467,-490.0,0.00013877,2]
[368735221,1751335848477,-490.0,0.00013877,2]
[368735222,1751335848487,-495.41057898,0.00013877,2]
[368735223,1751335848497,-2942.42,0.00013877,2]
[368735224,1751335848506,-3164.5,0.00013877,2]
[368735225,1751335848516,-490.0,0.00013877,2]
[368735226,1751335848530,-741.45,0.00013878,2]
[368735227,1751335848540,-490.0,0.00013878,2]
[368735228,1751335848551,-490.0,0.00013878,2]
[368735229,1751335848561,-764.16,0.00013878,2]
[368735230,1751335848573,-151.0,0.00013878,2]
[368735231,1751335848582,-151.0,0.00013878,2]
[368735232,1751335848592,-490.0,0.00013878,2]
[368735233,1751335848605,-490.0,0.00013878,2]
[368735234,1751335848615,-490.0,0.00013878,2]
[368735235,1751335848626,-494.75703411,0.00013878,2]
[368735236,1751335848635,-490.0,0.00013878,2]
[368735237,1751335848645,-151.0,0.00013878,2]
[368735238,1751335848655,-151.0,0.00013878,2]
[368735239,1751335848665,-169.328511,0.00013878,2]
[368735240,1751335848675,-151.0,0.00013878,2]